fUST/lending_fUST_20250819
["ID","MTS","AMOUNT","RATE_DAILY","PERIOD"]
[380093728,1755539259855,-480.0,0.0002,2]
[380093729,1755539259877,-480.0,0.0002,2]
[380093730,1755539259898,-480.0,0.0002,2]
[380093731,1755539259920,-247.48278515,0.0002,2]
[380093732,1755539259941,-460.0,0.0002,2]
[380093733,1755539259962,-480.0,0.0002,2]
[380093734,1755539259983,-480.0,0.0002,2]
[380093735,1755539260005,-480.0,0.0002,2]
[380093736,1755539260026,-480.0,0.0002,2]
[380093737,1755539260049,-480.0,0.0002,2]
[380093738,1755539260072,-480.0,0.0002,2]
[380093739,1755539260093,-480.0,0.0002,2]
[380093740,1755539260113,-480.0,0.0002,2]
[380093741,1755539260135,-480.0,0.0002,2]
[380093742,1755539260156,-480.0,0.0002,2]
[380093743,1755539260180,-800.07,0.0002,2]
[380093744,1755539260201,-151.0,0.0002,2]
[380093745,1755539260223,-480.0,0.0002,2]
[380093746,1755539260245,-194.987189,0.0002,2]
[380093747,1755539260267,-480.0,0.0002,2]
[380093748,1755539260291,-480.0,0.0002,2]
[380093749,1755539260312,-480.0,0.0002,2]
[380093750,1755539260335,-704.06,0.0002,2]
[380093751,1755539260357,-480.0,0.0002,2]
[380093752,1755539260379,-810.87,0.0002,2]
[380093753,1755539260402,-151.0,0.0002,2]
[380093754,1755539260427,-151.0,0.0002,2]
[380093755,1755539260448,-480.0,0.0002,2]
[380093756,1755539260471,-480.0,0.0002,2]
[380093757,1755539260493,-484.054568,0.0002,2]
[380093758,1755539260516,-484.054568,0.0002,2]
[380093759,1755539260539,-480.0,0.0002,2]
[380093760,1755539260560,-484.054568,0.0002,2]
[380093761,1755539260583,-484.054568,0.0002,2]
[380093762,1755539260605,-480.0,0.0002,2]
[380093763,1755539260628,-480.0,0.0002,2]
[380093764,1755539260649,-183.27288396,0.0002,2]
[380093765,1755539260670,-480.0,0.0002,2]
[380093766,1755539260691,-480.0,0.0002,2]
[380093767,1755539260818,-480.0,0.0002,2]
[380093768,1755539260840,-480.0,0.0002,2]
[380093769,1755539260862,-480.0,0.0002,2]
[380093770,1755539260883,-312.946588,0.0002,2]
[380093771,1755539260905,-312.946588,0.0002,2]
[380093772,1755539260926,-151.0,0.0002,2]
[380093773,1755539260947,-151.0,0.0002,2]
[380093774,1755539260968,-312.946588,0.0002,2]
[380093775,1755539260989,-235.41514,0.0002,2]
[380093776,1755539261010,-235.41514,0.0002,2]
[380093777,1755539261031,-312.946588,0.0002,2]
[380093778,1755539261055,-975.53,0.0002,2]
[380093779,1755539261076,-480.0,0.0002,2]
[380093780,1755539261098,-151.0,0.0002,2]
[380093781,1755539261120,-151.0,0.0002,2]
[380093782,1755539261143,-235.41514,0.0002,2]
[380093783,1755539261165,-235.41514,0.0002,2]
[380093784,1755539261187,-520.95,0.0002,2]
[380093785,1755539261215,-151.0,0.0002,2]
[380093786,1755539261239,-151.0,0.0002,2]
[380093787,1755539261263,-2401.4,0.0002,2]
[380093788,1755539261289,-480.0,0.0002,2]
[380093789,1755539261315,-480.0,0.0002,2]
[380093790,1755539261341,-526.13,0.0002,2]
[380093791,1755539261365,-977.95,0.0002,2]
[380093792,1755539261389,-1147.82,0.0002,2]
[380093793,1755539261414,-480.0,0.0002,2]
[380093794,1755539261439,-480.0,0.0002,2]
[380093795,1755539261462,-1686.53,0.0002,2]
[380093796,1755539261486,-1383.22,0.0002,2]
[380093797,1755539261511,-480.0,0.0002,2]
[380093798,1755539261532,-480.0,0.0002,2]
[380093799,1755539261557,-1169.23,0.0002,2]
[380093800,1755539261578,-151.0,0.0002,2]
[380093801,1755539261599,-151.0,0.0002,2]
[380093802,1755539261622,-480.0,0.0002,2]
[380093803,1755539261644,-480.0,0.0002,2]
[380093804,1755539261667,-502.98,0.0002,2]
[380093805,1755539261693,-151.0,0.0002,2]
[380093806,1755539261715,-151.0,0.0002,2]
[380093807,1755539261737,-2389.88,0.0002,2]
[380093808,1755539261758,-480.0,0.0002,2]
[380093809,1755539261780,-160.0,0.0002,3]
[380093810,1755539261804,-480.0,0.0002,2]
[380093811,1755539261825,-480.0,0.0002,2]
[380093812,1755539261847,-3649.79,0.0002,2]
[380093813,1755539261867,-480.0,0.0002,2]
[380093814,1755539261888,-480.0,0.0002,2]
[380093815,1755539261909,-185.969943,0.0002,2]
[380093816,1755539261930,-185.969943,0.0002,2]
[380093817,1755539261951,-480.0,0.0002,2]
[380093818,1755539261974,-185.969943,0.0002,2]
[380093819,1755539261996,-185.969943,0.0002,2]
[380093820,1755539262019,-480.0,0.0002,2]
[380093821,1755539262044,-151.0,0.0002,2]
[380093822,1755539262067,-480.0,0.0002,2]
[380093823,1755539262095,-1167.56,0.0002,2]
[380093824,1755539262119,-151.0,0.0002,2]
[380093825,1755539262143,-151.0,0.0002,2]
[380093826,1755539262166,-231.000468,0.0002,2]
[380093827,1755539262190,-480.0,0.0002,2]
[380093828,1755539262213,-231.000468,0.0002,2]
[380093829,1755539262237,-480.0,0.0002,2]
[380093830,1755539262260,-231.000468,0.0002,2]
[380093831,1755539262284,-1406.61,0.0002,2]
[380093832,1755539262308,-231.000468,0.0002,2]
[380093833,1755539262330,-480.0,0.0002,2]
[380093834,1755539262353,-480.0,0.0002,2]
[380093835,1755539262375,-950.44,0.0002,2]
[380093836,1755539262398,-570.72,0.0002,2]
[380093837,1755539262425,-480.0,0.0002,2]
[380093838,1755539262448,-693.98,0.0002,2]
[380093839,1755539262472,-406.756558,0.0002,2]
[380093840,1755539262497,-406.756558,0.0002,2]
[380093841,1755539262519,-406.756558,0.0002,2]
[380093842,1755539262544,-406.756558,0.0002,2]
[380093843,1755539262566,-254.854785,0.0002,2]
[380093844,1755539262587,-184.7,0.0002,2]
[380093845,1755539262611,-151.0,0.0002,2]
[380093846,1755539262635,-151.0,0.0002,2]
[380093847,1755539262658,-480.0,0.0002,2]
[380093848,1755539262683,-1046.49,0.0002,2]
[380093849,1755539262706,-1230.31,0.0002,2]
[380093850,1755539262731,-480.0,0.0002,2]
[380093851,1755539262755,-1267.1,0.0002,2]
[380093852,1755539262780,-480.0,0.0002,2]
[380093853,1755539262813,-718.56,0.0002,2]
[380093854,1755539262837,-480.0,0.0002,2]
[380093855,1755539262861,-480.0,0.0002,2]
[380093856,1755539262884,-876.66,0.0002,2]
[380093857,1755539262907,-480.0,0.0002,2]
[380093858,1755539262931,-484.97103451,0.0002,2]
[380093859,1755539262957,-498.45,0.0002,2]
[380093860,1755539262980,-480.0,0.0002,2]
[380093861,1755539263002,-480.0,0.0002,2]
[380093862,1755539263026,-480.0,0.0002,2]
[380093863,1755539263053,-4160.39,0.0002,2]
[380093864,1755539263077,-1098.51,0.0002,2]
[380093865,1755539263099,-1000.0,0.0002,2]
[380093866,1755539263122,-805.42,0.0002,2]
[380093867,1755539263145,-312.781793,0.0002,2]
[380093868,1755539263168,-312.781793,0.0002,2]
[380093869,1755539263191,-480.0,0.0002,2]
[380093870,1755539263215,-480.0,0.0002,2]
[380093871,1755539263241,-312.781793,0.0002,2]
[380093872,1755539263268,-312.781793,0.0002,2]
[380093873,1755539263308,-567.33627569,0.0002,2]
[380093874,1755539279150,158.780075,0.00013699,2]
[380093875,1755539294777,4448.842634,0.00027061,120]
[380093937,1755539433165,-300.0,0.00019077,2]
[380093939,1755539433174,-1200.0,0.00019077,2]
[380093941,1755539433188,-2408.86657907,0.00019078,2]
[380093943,1755539433198,-6086.33636493,0.00019078,2]
[380093959,1755539435381,-2239.04061257,0.00019078,2]
[380093960,1755539435439,-682.19529592,0.00019078,2]
[380093962,1755539435450,-151.56284473,0.00019178,2]
[380093964,1755539435461,-440.91571003,0.00019178,2]
[380093966,1755539435472,-151.0,0.00019178,2]
[380093967,1755539435482,-151.0,0.00019178,2]
[380093969,1755539435492,-480.0,0.00019178,2]
[380093970,1755539435502,-259.56278345,0.00019178,2]
[380093972,1755539435512,-151.0,0.00019178,2]
[380093974,1755539435521,-151.0,0.00019178,2]
[380093976,1755539435530,-480.0,0.00019178,2]
[380093978,1755539435541,-151.0,0.00019178,2]
[380093980,1755539435551,-151.0,0.00019178,2]
[380093982,1755539435560,-460.83407976,0.00019178,2]
[380093984,1755539435569,-480.0,0.00019178,2]
[380093985,1755539435579,-618.09,0.00019178,2]
[380093986,1755539435588,-109.73767519,0.00019178,2]
[380093996,1755539438578,-351.18852002,0.00019178,2]
[380093999,1755539438588,-480.0,0.00019178,2]
[380094000,1755539438598,-445.96175428,0.00019178,2]
[380094002,1755539438607,-480.0,0.00019178,2]
[380094004,1755539438616,-480.0,0.00019178,2]
[380094006,1755539438626,-480.97098266,0.00019178,2]
[380094009,1755539438635,-480.0,0.00019178,2]
[380094011,1755539438645,-480.0,0.00019178,2]
[380094014,1755539438654,-480.0,0.00019178,2]
[380094024,1755539438746,-460.0,0.00019178,2]
[380094026,1755539438756,-480.0,0.00019178,2]
[380094028,1755539438766,-480.0,0.00019178,2]
[380094030,1755539438776,-686.01,0.00019178,2]
[380094032,1755539438786,-460.0,0.00019178,2]
[380094034,1755539438795,-480.0,0.00019178,2]
[380094036,1755539438805,-974.36,0.00019178,2]
[380094038,1755539438815,-480.0,0.00019178,2]
[380094040,1755539438825,-480.0,0.00019178,2]
[380094042,1755539438834,-480.0,0.00019178,2]
[380094044,1755539438844,-480.0,0.00019178,2]
[380094046,1755539438853,-480.0,0.00019178,2]
[380094048,1755539438863,-480.0,0.00019178,2]
[380094050,1755539438871,-480.0,0.00019178,2]
[380094052,1755539438881,-232.26099601,0.00019178,2]
[380094054,1755539438890,-444.39918591,0.00019178,2]
[380094056,1755539438900,-872.08,0.00019178,2]
[380094057,1755539438909,-480.0,0.00019178,2]
[380094059,1755539438918,-480.0,0.00019178,2]
[380094061,1755539438929,-480.0,0.00019178,2]
[380094063,1755539438939,-480.0,0.00019178,2]
[380094065,1755539438949,-1152.68,0.00019178,2]
[380094067,1755539438959,-480.0,0.00019178,2]
[380094069,1755539438969,-480.0,0.00019178,2]
[380094071,1755539438978,-480.0,0.00019178,2]
[380094073,1755539438988,-480.0,0.00019178,2]
[380094075,1755539438998,-480.0,0.00019178,2]
[380094077,1755539439009,-915.43,0.00019178,2]
[380094079,1755539439018,-480.0,0.00019178,2]
[380094081,1755539439028,-480.0,0.00019178,2]
[380094083,1755539439039,-480.0,0.00019178,2]
[380094085,1755539439050,-553.43787956,0.00019178,2]
[380094087,1755539439060,-2823.25,0.00019178,2]
[380094089,1755539439069,-480.0,0.00019178,2]
[380094091,1755539439079,-655.16,0.00019178,2]
[380094093,1755539439089,-460.0,0.00019178,2]
[380094095,1755539439100,-440.0,0.00019178,2]
[380094097,1755539439110,-792.03,0.00019178,2]
[380094099,1755539439120,-480.0,0.00019178,2]
[380094101,1755539439131,-480.0,0.00019178,2]
[380094103,1755539439141,-1055.91,0.00019178,2]
[380094104,1755539439151,-480.0,0.00019178,2]
[380094105,1755539439161,-480.0,0.00019178,2]
[380094106,1755539439171,-480.0,0.00019178,2]
[380094107,1755539439182,-480.0,0.00019178,2]
[380094108,1755539439197,-440.0,0.00019178,2]
[380094109,1755539439206,-480.0,0.00019178,2]
[380094110,1755539439216,-480.0,0.00019178,2]
[380094112,1755539439225,-480.0,0.00019178,2]
[380094113,1755539439235,-598.8,0.00019178,2]
[380094115,1755539439245,-216.15082052,0.00019178,2]
[380094116,1755539439255,-1172.17,0.00019178,2]
[380094117,1755539439265,-480.0,0.00019178,2]
[380094118,1755539439274,-1991.57,0.00019178,2]
[380094119,1755539439284,-480.0,0.00019178,2]
[380094120,1755539439293,-440.0,0.00019178,2]
[380094121,1755539439304,-480.0,0.00019178,2]
[380094122,1755539439314,-480.0,0.00019178,2]
[380094123,1755539439323,-480.0,0.00019178,2]
[380094124,1755539439333,-480.0,0.00019178,2]
[380094125,1755539439343,-480.0,0.00019178,2]
[380094126,1755539439353,-480.0,0.00019178,2]
[380094127,1755539439363,-1000.0,0.00019178,2]
[380094128,1755539439372,-461.1873252,0.00019178,2]
[380094129,1755539439382,-480.0,0.00019178,2]
[380094130,1755539439393,-480.0,0.00019178,2]
[380094131,1755539439403,-1790.87,0.00019178,2]
[380094132,1755539439413,-480.0,0.00019178,2]
[380094133,1755539439423,-480.0,0.00019178,2]
[380094134,1755539439432,-480.0,0.00019178,2]
[380094135,1755539439446,-480.0,0.00019178,2]
[380094136,1755539439459,-480.0,0.00019178,2]
[380094137,1755539439477,-480.0,0.00019178,2]
[380094138,1755539439486,-2314.04,0.00019178,2]
[380094139,1755539439496,-2314.04,0.00019178,2]
[380094140,1755539439507,-2314.04,0.00019178,2]
[380094141,1755539439517,-2314.04,0.00019178,2]
[380094143,1755539439526,-2314.04,0.00019178,2]
[380094145,1755539439536,-480.0,0.00019178,2]
[380094146,1755539439550,-2314.04,0.00019178,2]
[380094148,1755539439560,-480.0,0.00019178,2]
[380094149,1755539439570,-480.0,0.00019178,2]
[380094150,1755539439580,-2314.04,0.00019178,2]
[380094151,1755539439589,-2314.04,0.00019178,2]
[380094152,1755539439599,-2314.04,0.00019178,2]
[380094153,1755539439610,-2314.04,0.00019178,2]
[380094154,1755539439620,-226.60811573,0.00019178,2]
[380094155,1755539439630,-2314.04,0.00019178,2]
[380094156,1755539439639,-2314.04,0.00019178,2]
[380094157,1755539439649,-480.0,0.00019178,2]
[380094158,1755539439659,-2314.04,0.00019178,2]
[380094159,1755539439668,-480.0,0.00019178,2]
[380094160,1755539439678,-2314.04,0.00019178,2]
[380094161,1755539439688,-686.72,0.00019178,2]
[380094162,1755539439698,-1539.45,0.00019178,2]
[380094163,1755539439708,-480.0,0.00019178,2]
[380094164,1755539439718,-480.0,0.00019178,2]
[380094165,1755539439728,-480.0,0.00019178,2]
[380094166,1755539439738,-480.0,0.00019178,2]
[380094167,1755539439747,-480.0,0.00019178,2]
[380094168,1755539439757,-364.61651063,0.00019178,2]
[380094169,1755539439766,-480.0,0.00019178,2]
[380094170,1755539439776,-480.0,0.00019178,2]
[380094171,1755539439785,-480.0,0.00019178,2]
[380094172,1755539439795,-480.0,0.00019178,2]
[380094173,1755539439804,-480.0,0.00019178,2]
[380094174,1755539439814,-480.0,0.00019178,2]
[380094175,1755539439824,-480.0,0.00019178,2]
[380094176,1755539439834,-480.0,0.00019178,2]
[380094177,1755539439844,-480.0,0.00019178,2]
[380094179,1755539439854,-500.0,0.00019178,2]
[380094180,1755539439864,-500.0,0.00019178,2]
[380094181,1755539439874,-500.0,0.00019178,2]
[380094182,1755539439884,-4069.45,0.00019178,2]
[380094183,1755539439894,-500.0,0.00019178,2]
[380094184,1755539439904,-480.0,0.00019178,2]
[380094185,1755539439914,-622.36,0.00019178,2]
[380094188,1755539439924,-480.0,0.00019178,2]
[380094189,1755539439933,-500.0,0.00019178,2]
[380094190,1755539439944,-480.0,0.00019178,2]
[380094191,1755539439953,-500.0,0.00019178,2]
[380094192,1755539439963,-480.0,0.00019178,2]
[380094194,1755539439972,-480.0,0.00019178,2]
[380094195,1755539439981,-480.0,0.00019178,2]
[380094196,1755539439990,-480.0,0.00019178,2]
[380094197,1755539439999,-480.0,0.00019178,2]
[380094198,1755539440009,-500.0,0.00019178,2]
[380094199,1755539440018,-500.0,0.00019178,2]
[380094200,1755539440027,-500.0,0.00019178,2]
[380094201,1755539440037,-500.0,0.00019178,2]
[380094202,1755539440046,-500.0,0.00019178,2]
[380094203,1755539440055,-1146.13,0.00019178,2]
[380094204,1755539440065,-500.0,0.00019178,2]
[380094205,1755539440074,-500.0,0.00019178,2]
[380094206,1755539440083,-500.0,0.00019178,2]
[380094207,1755539440093,-500.0,0.00019178,2]
[380094208,1755539440102,-675.72,0.00019178,2]
[380094209,1755539440112,-500.0,0.00019178,2]
[380094210,1755539440121,-500.0,0.00019178,2]
[380094211,1755539440131,-812.94,0.00019178,2]
[380094212,1755539440141,-480.0,0.00019178,2]
[380094213,1755539440151,-241.69828322,0.00019178,2]
[380094214,1755539440161,-480.0,0.00019178,2]
[380094219,1755539440171,-480.0,0.00019178,2]
[380094220,1755539440258,-480.0,0.00019178,2]
[380094221,1755539440267,-480.0,0.00019178,2]
[380094222,1755539440276,-480.0,0.00019178,2]
[380094223,1755539440286,-480.0,0.00019178,2]
[380094224,1755539440296,-480.0,0.00019178,2]
[380094225,1755539440306,-732.7,0.00019178,2]
[380094226,1755539440316,-480.0,0.00019178,2]
[380094227,1755539440325,-480.0,0.00019178,2]
[380094228,1755539440335,-480.0,0.00019178,2]
[380094229,1755539440346,-480.0,0.00019178,2]
[380094230,1755539440356,-500.0,0.00019178,2]
[380094231,1755539440365,-6626.65932386,0.00019178,2]
[380094232,1755539440375,-500.0,0.00019251,2]
[380094234,1755539440385,-284.80098047,0.00019328,2]
[380094235,1755539440395,-2314.04,0.00019329,2]
[380094236,1755539440405,-2314.04,0.00019329,2]
[380094237,1755539440416,-2314.04,0.00019329,2]
[380094238,1755539440426,-2314.04,0.00019329,2]
[380094239,1755539440435,-2314.04,0.00019329,2]
[380094240,1755539440445,-704.29849044,0.00019399,2]
[380094241,1755539440455,-151.0,0.000194,2]
[380094242,1755539440468,-2314.04,0.00019451,2]
[380094243,1755539440477,-2314.04,0.00019451,2]
[380094244,1755539440487,-2314.04,0.00019451,2]
[380094245,1755539440496,-2314.04,0.00019451,2]
[380094246,1755539440507,-2314.11190112,0.00019451,2]
[380094247,1755539440517,-151.0,0.00019452,2]
[380094248,1755539440526,-151.0,0.00019452,2]
[380094249,1755539440536,-480.0,0.00019452,2]
[380094250,1755539440546,-480.0,0.00019452,2]
[380094252,1755539440556,-480.0,0.00019452,2]
[380094253,1755539440565,-480.0,0.00019452,2]
[380094254,1755539440574,-480.0,0.00019452,2]
[380094255,1755539440584,-480.0,0.00019452,2]
[380094256,1755539440593,-686.01,0.00019452,2]
[380094257,1755539440602,-974.36,0.00019452,2]
[380094258,1755539440612,-480.0,0.00019452,2]
[380094259,1755539440621,-480.0,0.00019452,2]
[380094260,1755539440631,-480.0,0.00019452,2]
[380094261,1755539440640,-872.08,0.00019452,2]
[380094262,1755539440650,-480.0,0.00019452,2]
[380094263,1755539440659,-1152.68,0.00019452,2]
[380094264,1755539440669,-480.0,0.00019452,2]
[380094265,1755539440678,-480.0,0.00019452,2]
[380094266,1755539440688,-480.0,0.00019452,2]
[380094267,1755539440697,-915.43,0.00019452,2]
[380094268,1755539440706,-480.0,0.00019452,2]
[380094269,1755539440716,-2823.25,0.00019452,2]
[380094270,1755539440725,-480.0,0.00019452,2]
[380094271,1755539440734,-655.16,0.00019452,2]
[380094272,1755539440743,-349.63532197,0.00019452,2]
[380094273,1755539440753,-480.0,0.00019452,2]
[380094274,1755539440763,-1055.91,0.00019452,2]
[380094275,1755539440772,-480.0,0.00019452,2]
[380094276,1755539440781,-792.03,0.00019452,2]
[380094277,1755539440791,-480.0,0.00019452,2]
[380094278,1755539440800,-480.0,0.00019452,2]
[380094279,1755539440810,-480.0,0.00019452,2]
[380094280,1755539440819,-480.0,0.00019452,2]
[380094281,1755539440828,-480.0,0.00019452,2]
[380094282,1755539440836,-480.0,0.00019452,2]
[380094283,1755539440846,-598.8,0.00019452,2]
[380094284,1755539440856,-1172.17,0.00019452,2]
[380094285,1755539440865,-1991.57,0.00019452,2]
[380094286,1755539440874,-480.0,0.00019452,2]
[380094287,1755539440887,-480.0,0.00019452,2]
[380094288,1755539440905,-487.43269474,0.00019452,2]
[380094289,1755539440919,-480.0,0.00019452,2]
[380094290,1755539440934,-480.0,0.00019452,2]
[380094291,1755539440951,-480.0,0.00019452,2]
[380094292,1755539440967,-480.0,0.00019452,2]
[380094293,1755539440984,-1790.87,0.00019452,2]
[380094294,1755539440999,-480.0,0.00019452,2]
[380094295,1755539441012,-480.0,0.00019452,2]
[380094296,1755539441030,-480.0,0.00019452,2]
[380094297,1755539441043,-480.0,0.00019452,2]
[380094298,1755539441056,-480.0,0.00019452,2]
[380094299,1755539441071,-480.0,0.00019452,2]
[380094300,1755539441086,-480.0,0.00019452,2]
[380094301,1755539441104,-686.72,0.00019452,2]
[380094302,1755539441119,-1539.45,0.00019452,2]
[380094303,1755539441131,-480.0,0.00019452,2]
[380094304,1755539441145,-480.0,0.00019452,2]
[380094305,1755539441163,-480.0,0.00019452,2]
[380094306,1755539441176,-480.0,0.00019452,2]
[380094307,1755539441190,-480.0,0.00019452,2]
[380094308,1755539441203,-480.0,0.00019452,2]
[380094309,1755539441215,-480.0,0.00019452,2]
[380094310,1755539441229,-480.0,0.00019452,2]
[380094311,1755539441242,-534.51918852,0.00019452,2]
[380094312,1755539441256,-480.0,0.00019452,2]
[380094313,1755539441269,-4069.45,0.00019452,2]
[380094314,1755539441283,-480.0,0.00019452,2]
[380094315,1755539441295,-622.36,0.00019452,2]
[380094316,1755539441307,-605.06,0.00019452,2]
[380094317,1755539441320,-480.0,0.00019452,2]
[380094318,1755539441333,-449.56962186,0.00019452,2]
[380094319,1755539441346,-480.0,0.00019452,2]
[380094320,1755539441359,-1146.13,0.00019452,2]
[380094321,1755539441371,-675.72,0.00019452,2]
[380094322,1755539441384,-480.0,0.00019452,2]
[380094323,1755539441396,-812.94,0.00019452,2]
[380094324,1755539441408,-480.0,0.00019452,2]
[380094325,1755539441420,-480.0,0.00019452,2]
[380094326,1755539441433,-480.0,0.00019452,2]
[380094327,1755539441447,-317.14787522,0.00019452,2]
[380094329,1755539441463,-732.7,0.00019452,2]
[380094330,1755539441476,-480.0,0.00019452,2]
[380094331,1755539441489,-500.0,0.00019452,2]
[380094332,1755539441503,-467.0,0.00019533,2]
[380094333,1755539441517,-200.0,0.00019561,20]
[380094334,1755539441530,-200.0,0.00019561,20]
[380094335,1755539441544,-200.0,0.00019561,20]
[380094336,1755539441554,-200.0,0.00019561,20]
[380094337,1755539441563,-200.0,0.00019561,20]
[380094338,1755539441573,-200.0,0.00019561,20]
[380094339,1755539441582,-200.0,0.00019561,20]
[380094340,1755539441591,-200.0,0.00019561,20]
[380094341,1755539441601,-200.0,0.00019561,20]
[380094342,1755539441610,-200.0,0.00019561,20]
[380094343,1755539441619,-600.0,0.00019561,20]
[380094344,1755539441629,-467.0,0.00019597,2]
[380094345,1755539441638,-151.0,0.000196,2]
[380094346,1755539441648,-326.1,0.00019683,2]
[380094347,1755539441657,-215.75323784,0.00019709,2]
[380094348,1755539441667,-160.0,0.00019709,2]
[380094349,1755539441676,-528.58062739,0.00019709,2]
[380094350,1755539441686,-843.81736472,0.00019709,2]
[380094351,1755539441695,-160.0,0.00019709,2]
[380094352,1755539441705,-12683.78573522,0.00019709,2]
[380094353,1755539441714,-375.82681177,0.00019709,2]
[380094354,1755539441892,-160.0,0.00019709,2]
[380094355,1755539441911,-216.85420361,0.00019709,2]
[380094356,1755539441921,-160.0,0.00019709,2]
[380094357,1755539441930,-160.0,0.00019709,2]
[380094358,1755539441940,-417.15472785,0.00019709,2]
[380094359,1755539441949,-160.0,0.00019709,2]
[380094360,1755539441959,-198.0,0.00019726,2]
[380094361,1755539441968,-198.0,0.00019726,2]
[380094362,1755539441977,-151.0,0.00019726,2]
[380094363,1755539441986,-151.0,0.00019726,2]
[380094364,1755539441996,-242.025526,0.00019726,2]
[380094365,1755539442005,-151.0,0.00019726,2]
[380094366,1755539442014,-151.0,0.00019726,2]
[380094367,1755539442023,-246.076149,0.00019726,2]
[380094368,1755539442033,-246.076149,0.00019726,2]
[380094369,1755539442043,-480.0,0.00019726,2]
[380094370,1755539442051,-246.076149,0.00019726,2]
[380094371,1755539442061,-246.076149,0.00019726,2]
[380094372,1755539442070,-480.0,0.00019726,2]
[380094373,1755539442080,-151.0,0.00019726,2]
[380094374,1755539442088,-151.0,0.00019726,2]
[380094375,1755539442098,-151.0,0.00019726,2]
[380094376,1755539442107,-480.0,0.00019726,2]
[380094377,1755539442116,-480.0,0.00019726,2]
[380094378,1755539442126,-686.01,0.00019726,2]
[380094379,1755539442135,-974.36,0.00019726,2]
[380094380,1755539442144,-360.0,0.00019726,2]
[380094381,1755539442153,-571.55534114,0.00019726,2]
[380094382,1755539442162,-480.0,0.00019726,2]
[380094383,1755539442172,-872.08,0.00019726,2]
[380094384,1755539442180,-1152.68,0.00019726,2]
[380094385,1755539442190,-209.527776,0.00019726,2]
[380094386,1755539442199,-480.0,0.00019726,2]
[380094387,1755539442208,-480.0,0.00019726,2]
[380094388,1755539442217,-480.0,0.00019726,2]
[380094389,1755539442226,-915.43,0.00019726,2]
[380094390,1755539442236,-480.0,0.00019726,2]
[380094391,1755539442245,-2823.25,0.00019726,2]
[380094392,1755539442254,-480.0,0.00019726,2]
[380094393,1755539442264,-655.16,0.00019726,2]
[380094394,1755539442274,-480.0,0.00019726,2]
[380094395,1755539442284,-1055.91,0.00019726,2]
[380094396,1755539442293,-480.0,0.00019726,2]
[380094397,1755539442302,-792.03,0.00019726,2]
[380094398,1755539442311,-480.0,0.00019726,2]
[380094399,1755539442321,-493.06,0.00019726,2]
[380094400,1755539442331,-598.59121376,0.00019726,2]